[Event "Titled Tuesday Blitz February 28 Late 2023"]
[White "Rosenberg, Evan S"]
[Black "Gurevich, Ilya"]
[WhiteFideId "2019299"]
[BlackFideId "2000628"]
[WhiteElo "2431"]
[BlackElo "2130"]
[Result "1-0"]
[Round "03"]
[TimeControl "180+2"]
[Date "2023.02.28"]
[WhiteClock "0:00:11"]
[BlackClock "0:00:02"]

1. d4 {[%clk 0:03:00]}  Nf6 {[%clk 0:02:59]} 2. Nf3 {[%clk 0:02:59]}  g6 {[%clk 0:03:00]} 3. Nc3 {[%clk 0:02:59]}  Bg7 {[%clk 0:03:00]} 4. e4 {[%clk 0:02:59]}  d6 {[%clk 0:03:01]} 5. Be2 {[%clk 0:03:00]}  O-O {[%clk 0:03:02]} 6. O-O {[%clk 0:03:00]}  Nbd7 {[%clk 0:03:01]} 7. e5 {[%clk 0:02:55]}  Ne8 {[%clk 0:03:00]} 8. Bf4 {[%clk 0:02:54]}  b6 {[%clk 0:02:39]} 9. Bc4 {[%clk 0:02:18]}  e6 {[%clk 0:02:25]} 10. Bg5 {[%clk 0:02:11]}  f6 {[%clk 0:02:21]} 11. Bxe6+ {[%clk 0:02:10]}  Kh8 {[%clk 0:02:21]} 12. Bh4 {[%clk 0:01:57]}  Nxe5 {[%clk 0:02:04]} 13. Bd5 {[%clk 0:01:08]}  Nxf3+ {[%clk 0:02:03]} 14. Qxf3 {[%clk 0:01:07]}  Rb8 {[%clk 0:02:03]} 15. Rae1 {[%clk 0:01:03]}  Bd7 {[%clk 0:01:57]} 16. a4 {[%clk 0:00:50]}  Qc8 {[%clk 0:01:47]} 17. Re7 {[%clk 0:00:47]}  c6 {[%clk 0:01:46]} 18. Ba2 {[%clk 0:00:39]}  d5 {[%clk 0:01:44]} 19. Rfe1 {[%clk 0:00:38]}  Nd6 {[%clk 0:01:39]} 20. Bg3 {[%clk 0:00:37]}  Bg4 {[%clk 0:00:37]} 21. Qf4 {[%clk 0:00:36]}  Nf5 {[%clk 0:00:37]} 22. Rc7 {[%clk 0:00:32]}  Nxg3 {[%clk 0:00:01]} 23. Rxc8 {[%clk 0:00:31]}  Rbxc8 {[%clk 0:00:01]} 24. Qxg4 {[%clk 0:00:22]}  Nf5 {[%clk 0:00:01]} 25. b4 {[%clk 0:00:16]}  Rce8 {[%clk 0:00:01]} 26. Rxe8 {[%clk 0:00:13]}  Rxe8 {[%clk 0:00:02]} 27. h3 {[%clk 0:00:14]}  Nd6 {[%clk 0:00:02]} 28. b5 {[%clk 0:00:13]}  f5 {[%clk 0:00:02]} 29. Qf4 {[%clk 0:00:11]} 1-0


[Site "https://www.chess.com"]

[Event "Titled Tuesday Blitz February 28 Late 2023"]
[White "Haszon, David"]
[Black "Eckert, Doug"]
[WhiteFideId "733610"]
[BlackFideId "2001993"]
[WhiteElo "2210"]
[BlackElo "2202"]
[Result "0-1"]
[Round "03"]
[TimeControl "180+2"]
[Date "2023.02.28"]
[WhiteClock "0:02:00"]
[BlackClock "0:01:08"]

1. d4 {[%clk 0:03:00]}  Nf6 {[%clk 0:02:59]} 2. Bf4 {[%clk 0:02:59]}  d5 {[%clk 0:02:59]} 3. e3 {[%clk 0:03:00]}  e6 {[%clk 0:02:59]} 4. Nf3 {[%clk 0:02:58]}  Bd6 {[%clk 0:02:59]} 5. Bg3 {[%clk 0:02:58]}  O-O {[%clk 0:02:59]} 6. Bd3 {[%clk 0:02:54]}  c5 {[%clk 0:02:59]} 7. c3 {[%clk 0:02:55]}  Qc7 {[%clk 0:02:53]} 8. Nbd2 {[%clk 0:02:53]}  Nbd7 {[%clk 0:02:51]} 9. e4 {[%clk 0:02:32]}  dxe4 {[%clk 0:02:38]} 10. Nxe4 {[%clk 0:02:33]}  Nxe4 {[%clk 0:02:35]} 11. Bxe4 {[%clk 0:02:34]}  f5 {[%clk 0:02:03]} 12. dxc5 {[%clk 0:02:26]}  Bxg3 {[%clk 0:01:51]} 13. hxg3 {[%clk 0:02:18]}  fxe4 {[%clk 0:01:45]} 14. Ng5 {[%clk 0:02:14]}  Qxc5 {[%clk 0:01:29]} 15. Qd2 {[%clk 0:02:01]}  e3 {[%clk 0:01:10]} 16. Qxe3 {[%clk 0:01:59]}  Qxe3+ {[%clk 0:01:09]} 17. fxe3 {[%clk 0:02:00]}  Nf6 {[%clk 0:01:08]} 0-1


[Site "https://www.chess.com"]

[Event "Titled Tuesday Blitz February 28 Late 2023"]
[White "Plenca, Jadranko"]
[Black "Ward, Ieuan C"]
[WhiteFideId "14527146"]
[BlackFideId "406627"]
[WhiteElo "2491"]
[BlackElo "2319"]
[Result "1-0"]
[Round "03"]
[TimeControl "180+2"]
[Date "2023.02.28"]
[WhiteClock "0:00:42"]
[BlackClock "0:00:02"]

1. e4 {[%clk 0:03:00]}  d5 {[%clk 0:02:58]} 2. exd5 {[%clk 0:02:58]}  Qxd5 {[%clk 0:02:59]} 3. Nc3 {[%clk 0:02:57]}  Qd6 {[%clk 0:02:59]} 4. d4 {[%clk 0:02:56]}  Nf6 {[%clk 0:02:59]} 5. Nb5 {[%clk 0:02:55]}  Qb6 {[%clk 0:02:58]} 6. c4 {[%clk 0:02:48]}  c6 {[%clk 0:02:53]} 7. Nc3 {[%clk 0:02:48]}  Bf5 {[%clk 0:02:50]} 8. Nf3 {[%clk 0:02:43]}  e6 {[%clk 0:02:49]} 9. Bd3 {[%clk 0:02:44]}  Bg6 {[%clk 0:02:42]} 10. O-O {[%clk 0:02:43]}  Be7 {[%clk 0:02:42]} 11. Re1 {[%clk 0:02:43]}  O-O {[%clk 0:02:42]} 12. Bxg6 {[%clk 0:02:17]}  hxg6 {[%clk 0:02:41]} 13. Qe2 {[%clk 0:02:17]}  Bb4 {[%clk 0:02:30]} 14. Bg5 {[%clk 0:02:16]}  Nbd7 {[%clk 0:02:29]} 15. a3 {[%clk 0:02:14]}  Bxc3 {[%clk 0:02:29]} 16. bxc3 {[%clk 0:02:15]}  Qa5 {[%clk 0:02:23]} 17. Qc2 {[%clk 0:02:11]}  a6 {[%clk 0:02:10]} 18. c5 {[%clk 0:02:10]}  b5 {[%clk 0:02:03]} 19. cxb6 {[%clk 0:01:57]}  Nxb6 {[%clk 0:02:00]} 20. Ne5 {[%clk 0:01:57]}  Rfc8 {[%clk 0:01:50]} 21. Bxf6 {[%clk 0:01:52]}  gxf6 {[%clk 0:01:49]} 22. Nxg6 {[%clk 0:01:52]}  Kg7 {[%clk 0:01:36]} 23. Nf4 {[%clk 0:01:49]}  Nc4 {[%clk 0:01:30]} 24. Qe2 {[%clk 0:01:45]}  Nd6 {[%clk 0:01:26]} 25. Qg4+ {[%clk 0:01:39]}  Qg5 {[%clk 0:01:23]} 26. Qxg5+ {[%clk 0:01:39]}  fxg5 {[%clk 0:01:23]} 27. Nd3 {[%clk 0:01:40]}  Rcb8 {[%clk 0:01:17]} 28. Reb1 {[%clk 0:01:40]}  Rb5 {[%clk 0:01:15]} 29. Ne5 {[%clk 0:01:37]}  Rab8 {[%clk 0:01:07]} 30. Rxb5 {[%clk 0:01:33]}  cxb5 {[%clk 0:01:06]} 31. f3 {[%clk 0:01:32]}  Rc8 {[%clk 0:01:04]} 32. Rc1 {[%clk 0:01:30]}  Nc4 {[%clk 0:01:03]} 33. Nd3 {[%clk 0:01:21]}  Nxa3 {[%clk 0:01:01]} 34. Nc5 {[%clk 0:01:22]}  e5 {[%clk 0:00:46]} 35. Ra1 {[%clk 0:01:15]}  exd4 {[%clk 0:00:44]} 36. cxd4 {[%clk 0:01:16]}  Nc2 {[%clk 0:00:43]} 37. Rxa6 {[%clk 0:01:13]}  Nxd4 {[%clk 0:00:43]} 38. Nd3 {[%clk 0:00:59]}  Rc3 {[%clk 0:00:38]} 39. Nb4 {[%clk 0:00:59]}  Rc4 {[%clk 0:00:35]} 40. Nd5 {[%clk 0:00:59]}  b4 {[%clk 0:00:31]} 41. Rb6 {[%clk 0:00:57]}  b3 {[%clk 0:00:31]} 42. Kf2 {[%clk 0:00:56]}  Rc2+ {[%clk 0:00:25]} 43. Ke3 {[%clk 0:00:56]}  Nf5+ {[%clk 0:00:24]} 44. Ke4 {[%clk 0:00:55]}  Nh4 {[%clk 0:00:18]} 45. g3 {[%clk 0:00:54]}  f5+ {[%clk 0:00:08]} 46. Ke5 {[%clk 0:00:54]}  Nxf3+ {[%clk 0:00:08]} 47. Kxf5 {[%clk 0:00:55]}  b2 {[%clk 0:00:08]} 48. Rb7+ {[%clk 0:00:53]}  Kf8 {[%clk 0:00:07]} 49. Nf6 {[%clk 0:00:42]}  Nd4+ {[%clk 0:00:04]} 50. Kg6 {[%clk 0:00:42]}  Rxh2 {[%clk 0:00:02]} 51. Rf7# {[%clk 0:00:42]} 1-0


[Site "https://www.chess.com"]

[Event "Titled Tuesday Blitz February 28 Late 2023"]
[White "Liu, Casper"]
[Black "Karttunen, Mika"]
[WhiteFideId "1454153"]
[BlackFideId "502081"]
[WhiteElo "2221"]
[BlackElo "2396"]
[Result "0-1"]
[Round "03"]
[TimeControl "180+2"]
[Date "2023.02.28"]
[WhiteClock "0:01:26"]
[BlackClock "0:00:29"]

1. d4 {[%clk 0:03:00]}  Nf6 {[%clk 0:02:59]} 2. c4 {[%clk 0:02:55]}  e6 {[%clk 0:02:58]} 3. Nc3 {[%clk 0:02:56]}  Bb4 {[%clk 0:02:58]} 4. Qc2 {[%clk 0:02:56]}  Nc6 {[%clk 0:02:57]} 5. Nf3 {[%clk 0:02:56]}  d6 {[%clk 0:02:55]} 6. Bg5 {[%clk 0:02:56]}  h6 {[%clk 0:02:52]} 7. Bxf6 {[%clk 0:02:56]}  Qxf6 {[%clk 0:02:51]} 8. e3 {[%clk 0:02:57]}  e5 {[%clk 0:02:49]} 9. dxe5 {[%clk 0:02:56]}  Nxe5 {[%clk 0:02:46]} 10. O-O-O {[%clk 0:02:52]}  Bxc3 {[%clk 0:02:30]} 11. Qxc3 {[%clk 0:02:50]}  O-O {[%clk 0:02:22]} 12. Be2 {[%clk 0:02:49]}  a6 {[%clk 0:01:55]} 13. Nxe5 {[%clk 0:02:36]}  dxe5 {[%clk 0:01:55]} 14. Bf3 {[%clk 0:02:36]}  c6 {[%clk 0:01:45]} 15. Rd2 {[%clk 0:02:12]}  Be6 {[%clk 0:01:30]} 16. Rhd1 {[%clk 0:02:08]}  b5 {[%clk 0:01:22]} 17. c5 {[%clk 0:02:05]}  b4 {[%clk 0:01:14]} 18. Qxb4 {[%clk 0:02:02]}  Rab8 {[%clk 0:01:10]} 19. Qc3 {[%clk 0:02:00]}  Bxa2 {[%clk 0:00:52]} 20. b4 {[%clk 0:01:59]}  Be6 {[%clk 0:00:49]} 21. Rd6 {[%clk 0:01:46]}  Qh4 {[%clk 0:00:47]} 22. e4 {[%clk 0:01:44]}  a5 {[%clk 0:00:43]} 23. bxa5 {[%clk 0:01:42]}  Rb3 {[%clk 0:00:43]} 24. Qc2 {[%clk 0:01:36]}  Ra3 {[%clk 0:00:39]} 25. g3 {[%clk 0:01:30]}  Qg5+ {[%clk 0:00:31]} 26. Kb1 {[%clk 0:01:26]}  Rb8+ {[%clk 0:00:29]} 0-1


[Site "https://www.chess.com"]

[Event "Titled Tuesday Blitz February 28 Late 2023"]
[White "Yeritsyan, Hayk"]
[Black "Romero Ruscalleda, Josep"]
[WhiteFideId "13307320"]
[BlackFideId "2231859"]
[WhiteElo "2468"]
[BlackElo "2183"]
[Result "1-0"]
[Round "03"]
[TimeControl "180+2"]
[Date "2023.02.28"]
[WhiteClock "0:00:18"]
[BlackClock "0:00:20"]

1. d4 {[%clk 0:02:58]}  g6 {[%clk 0:03:00]} 2. Nf3 {[%clk 0:02:57]}  Bg7 {[%clk 0:03:01]} 3. Bf4 {[%clk 0:02:58]}  d6 {[%clk 0:03:01]} 4. h3 {[%clk 0:02:58]}  Nf6 {[%clk 0:03:01]} 5. e3 {[%clk 0:02:58]}  O-O {[%clk 0:03:01]} 6. c3 {[%clk 0:02:59]}  Nbd7 {[%clk 0:03:01]} 7. Be2 {[%clk 0:03:00]}  b6 {[%clk 0:03:01]} 8. O-O {[%clk 0:03:00]}  Bb7 {[%clk 0:03:01]} 9. Nbd2 {[%clk 0:03:01]}  Ne4 {[%clk 0:03:01]} 10. Bh2 {[%clk 0:03:01]}  f5 {[%clk 0:02:55]} 11. Nxe4 {[%clk 0:02:59]}  fxe4 {[%clk 0:02:53]} 12. Qb3+ {[%clk 0:02:48]}  d5 {[%clk 0:02:45]} 13. Ng5 {[%clk 0:02:48]}  Rf6 {[%clk 0:02:45]} 14. Nxe4 {[%clk 0:02:44]}  Rf5 {[%clk 0:02:35]} 15. Bg4 {[%clk 0:02:22]}  c5 {[%clk 0:02:04]} 16. Bxf5 {[%clk 0:02:16]}  gxf5 {[%clk 0:02:04]} 17. Ng5 {[%clk 0:01:53]}  Nf8 {[%clk 0:02:02]} 18. Qc2 {[%clk 0:01:49]}  e6 {[%clk 0:02:00]} 19. Nf3 {[%clk 0:01:34]}  Rc8 {[%clk 0:01:58]} 20. Be5 {[%clk 0:01:30]}  Bh6 {[%clk 0:01:54]} 21. Bf4 {[%clk 0:01:27]}  Bg7 {[%clk 0:01:53]} 22. Ne5 {[%clk 0:01:25]}  Ng6 {[%clk 0:01:48]} 23. Nxg6 {[%clk 0:01:25]}  hxg6 {[%clk 0:01:48]} 24. Qe2 {[%clk 0:01:15]}  Kf7 {[%clk 0:01:43]} 25. f3 {[%clk 0:01:06]}  Bf6 {[%clk 0:01:33]} 26. Be5 {[%clk 0:01:05]}  Bxe5 {[%clk 0:01:23]} 27. dxe5 {[%clk 0:01:05]}  Qg5 {[%clk 0:01:19]} 28. e4 {[%clk 0:00:52]}  Rd8 {[%clk 0:01:04]} 29. Rad1 {[%clk 0:00:44]}  Kg7 {[%clk 0:00:54]} 30. exd5 {[%clk 0:00:43]}  Bxd5 {[%clk 0:00:54]} 31. c4 {[%clk 0:00:40]}  Bc6 {[%clk 0:00:46]} 32. Rxd8 {[%clk 0:00:40]}  Qxd8 {[%clk 0:00:46]} 33. Rd1 {[%clk 0:00:40]}  Qg5 {[%clk 0:00:45]} 34. Rd6 {[%clk 0:00:25]}  Be8 {[%clk 0:00:25]} 35. Qd2 {[%clk 0:00:21]}  f4 {[%clk 0:00:21]} 36. Rxe6 {[%clk 0:00:17]}  Bf7 {[%clk 0:00:22]} 37. Rd6 {[%clk 0:00:14]}  Qxe5 {[%clk 0:00:22]} 38. Qc3 {[%clk 0:00:14]}  Qxc3 {[%clk 0:00:22]} 39. bxc3 {[%clk 0:00:15]}  Bxc4 {[%clk 0:00:21]} 40. Rd7+ {[%clk 0:00:16]}  Kf6 {[%clk 0:00:22]} 41. Rxa7 {[%clk 0:00:17]}  g5 {[%clk 0:00:20]} 42. Rb7 {[%clk 0:00:16]}  b5 {[%clk 0:00:20]} 43. Rc7 {[%clk 0:00:16]}  Bxa2 {[%clk 0:00:20]} 44. Rxc5 {[%clk 0:00:16]}  Bc4 {[%clk 0:00:20]} 45. Kf2 {[%clk 0:00:16]}  Kg6 {[%clk 0:00:17]} 46. g3 {[%clk 0:00:16]}  Kf6 {[%clk 0:00:16]} 47. gxf4 {[%clk 0:00:13]}  gxf4 {[%clk 0:00:16]} 48. h4 {[%clk 0:00:14]}  Kg6 {[%clk 0:00:16]} 49. Rg5+ {[%clk 0:00:13]}  Kf6 {[%clk 0:00:16]} 50. Ke1 {[%clk 0:00:14]}  Bd3 {[%clk 0:00:15]} 51. Kd2 {[%clk 0:00:13]}  Bf5 {[%clk 0:00:15]} 52. Rxf5+ {[%clk 0:00:11]}  Kxf5 {[%clk 0:00:15]} 53. Kd3 {[%clk 0:00:12]}  Ke5 {[%clk 0:00:13]} 54. h5 {[%clk 0:00:12]}  Kf5 {[%clk 0:00:13]} 55. Kd4 {[%clk 0:00:13]}  Kg5 {[%clk 0:00:14]} 56. Ke4 {[%clk 0:00:13]}  Kxh5 {[%clk 0:00:14]} 57. Kxf4 {[%clk 0:00:14]}  Kg6 {[%clk 0:00:15]} 58. Ke5 {[%clk 0:00:14]}  Kf7 {[%clk 0:00:15]} 59. Kd5 {[%clk 0:00:14]}  Kf6 {[%clk 0:00:15]} 60. Kc5 {[%clk 0:00:15]}  Kf5 {[%clk 0:00:15]} 61. Kxb5 {[%clk 0:00:15]}  Kf4 {[%clk 0:00:16]} 62. c4 {[%clk 0:00:15]}  Kxf3 {[%clk 0:00:17]} 63. c5 {[%clk 0:00:16]}  Ke4 {[%clk 0:00:18]} 64. c6 {[%clk 0:00:17]}  Kd5 {[%clk 0:00:19]} 65. c7 {[%clk 0:00:17]}  Kd6 {[%clk 0:00:20]} 66. c8=Q {[%clk 0:00:18]} 1-0


[Site "https://www.chess.com"]

[Event "Titled Tuesday Blitz February 28 Late 2023"]
[White "MunichMouse"]
[Black "reevecanada"]
[WhiteElo "2298"]
[BlackElo "2468"]
[Result "0-1"]
[Round "03"]
[TimeControl "180+2"]
[Date "2023.02.28"]
[WhiteClock "0:00:36"]
[BlackClock "0:01:43"]

1. d4 {[%clk 0:03:00]}  Nf6 {[%clk 0:02:55]} 2. c4 {[%clk 0:03:00]}  g6 {[%clk 0:02:54]} 3. g3 {[%clk 0:03:01]}  c6 {[%clk 0:02:53]} 4. Bg2 {[%clk 0:03:00]}  d5 {[%clk 0:02:53]} 5. b3 {[%clk 0:03:00]}  Bg7 {[%clk 0:02:54]} 6. Bb2 {[%clk 0:03:01]}  O-O {[%clk 0:02:54]} 7. Nf3 {[%clk 0:03:01]}  a5 {[%clk 0:02:54]} 8. Nc3 {[%clk 0:03:00]}  e6 {[%clk 0:02:53]} 9. O-O {[%clk 0:03:00]}  Re8 {[%clk 0:02:53]} 10. Qc2 {[%clk 0:03:00]}  Nbd7 {[%clk 0:02:53]} 11. e4 {[%clk 0:03:00]}  dxe4 {[%clk 0:02:52]} 12. Nxe4 {[%clk 0:03:00]}  Nxe4 {[%clk 0:02:51]} 13. Qxe4 {[%clk 0:03:01]}  Qc7 {[%clk 0:02:50]} 14. Rac1 {[%clk 0:03:00]}  e5 {[%clk 0:02:50]} 15. d5 {[%clk 0:02:59]}  Nc5 {[%clk 0:02:49]} 16. Qe2 {[%clk 0:02:59]}  Bf5 {[%clk 0:02:48]} 17. dxc6 {[%clk 0:02:58]}  Bd3 {[%clk 0:02:47]} 18. Qe3 {[%clk 0:02:56]}  Bxf1 {[%clk 0:02:47]} 19. Qxc5 {[%clk 0:02:55]}  Bxg2 {[%clk 0:02:47]} 20. Kxg2 {[%clk 0:02:54]}  Qxc6 {[%clk 0:02:47]} 21. Qxc6 {[%clk 0:02:54]}  bxc6 {[%clk 0:02:47]} 22. Nd2 {[%clk 0:02:34]}  a4 {[%clk 0:02:44]} 23. b4 {[%clk 0:02:33]}  a3 {[%clk 0:02:40]} 24. Bc3 {[%clk 0:02:32]}  e4 {[%clk 0:02:39]} 25. Nf1 {[%clk 0:02:26]}  Rab8 {[%clk 0:02:37]} 26. Bxg7 {[%clk 0:02:21]}  Kxg7 {[%clk 0:02:38]} 27. Rb1 {[%clk 0:02:21]}  Red8 {[%clk 0:02:37]} 28. Rb3 {[%clk 0:02:18]}  Rd4 {[%clk 0:02:36]} 29. Ne3 {[%clk 0:02:16]}  Rd2 {[%clk 0:02:36]} 30. Rxa3 {[%clk 0:02:16]}  Rxb4 {[%clk 0:02:36]} 31. Nf1 {[%clk 0:01:32]}  Re2 {[%clk 0:02:26]} 32. Re3 {[%clk 0:01:31]}  Rxe3 {[%clk 0:02:22]} 33. Nxe3 {[%clk 0:01:32]}  Ra4 {[%clk 0:02:22]} 34. g4 {[%clk 0:01:28]}  Rxa2 {[%clk 0:02:21]} 35. g5 {[%clk 0:01:28]}  h6 {[%clk 0:02:20]} 36. h4 {[%clk 0:01:28]}  f5 {[%clk 0:02:20]} 37. gxf6+ {[%clk 0:01:27]}  Kxf6 {[%clk 0:02:19]} 38. Kg3 {[%clk 0:01:28]}  g5 {[%clk 0:02:18]} 39. Ng4+ {[%clk 0:01:23]}  Kg7 {[%clk 0:02:16]} 40. hxg5 {[%clk 0:01:21]}  hxg5 {[%clk 0:02:15]} 41. Ne5 {[%clk 0:01:14]}  c5 {[%clk 0:02:13]} 42. Nd7 {[%clk 0:01:11]}  Rc2 {[%clk 0:02:09]} 43. Nxc5 {[%clk 0:01:03]}  Rxc4 {[%clk 0:02:08]} 44. Nb7 {[%clk 0:00:58]}  Rc3+ {[%clk 0:02:05]} 45. Kg4 {[%clk 0:00:53]}  Kg6 {[%clk 0:02:00]} 46. Nd6 {[%clk 0:00:52]}  e3 {[%clk 0:01:59]} 47. fxe3 {[%clk 0:00:44]}  Rxe3 {[%clk 0:01:59]} 48. Nb7 {[%clk 0:00:41]}  Re5 {[%clk 0:01:54]} 49. Nd6 {[%clk 0:00:40]}  Rd5 {[%clk 0:01:52]} 50. Ne4 {[%clk 0:00:36]}  Rd4 {[%clk 0:01:51]} 51. Kf3 {[%clk 0:00:37]}  g4+ {[%clk 0:01:45]} 52. Kf4 {[%clk 0:00:36]}  g3 {[%clk 0:01:43]} 0-1


[Site "https://www.chess.com"]

[Event "Titled Tuesday Blitz February 28 Late 2023"]
[White "Awoki, Daniel Teidi"]
[Black "Vovk, Orest"]
[WhiteFideId "2100827"]
[BlackFideId "14113490"]
[WhiteElo "2083"]
[BlackElo "2215"]
[Result "0-1"]
[Round "03"]
[TimeControl "180+2"]
[Date "2023.02.28"]
[WhiteClock "0:00:55"]
[BlackClock "0:00:43"]

1. e4 {[%clk 0:03:00]}  g5 {[%clk 0:02:53]} 2. d4 {[%clk 0:03:00]}  g4 {[%clk 0:02:53]} 3. Nc3 {[%clk 0:02:56]}  Bg7 {[%clk 0:02:52]} 4. Bc4 {[%clk 0:02:55]}  h5 {[%clk 0:02:51]} 5. Bf4 {[%clk 0:02:48]}  c5 {[%clk 0:02:51]} 6. e5 {[%clk 0:02:44]}  cxd4 {[%clk 0:02:50]} 7. Qxd4 {[%clk 0:02:44]}  Nc6 {[%clk 0:02:51]} 8. Qe3 {[%clk 0:02:43]}  Qa5 {[%clk 0:02:49]} 9. O-O-O {[%clk 0:02:38]}  Bxe5 {[%clk 0:02:47]} 10. Nge2 {[%clk 0:02:33]}  Nf6 {[%clk 0:02:43]} 11. Rhe1 {[%clk 0:02:27]}  d6 {[%clk 0:02:36]} 12. Kb1 {[%clk 0:02:24]}  Bf5 {[%clk 0:02:33]} 13. Nd4 {[%clk 0:02:18]}  Nxd4 {[%clk 0:02:22]} 14. Rxd4 {[%clk 0:02:17]}  O-O-O {[%clk 0:02:09]} 15. Bxe5 {[%clk 0:02:03]}  dxe5 {[%clk 0:02:08]} 16. Rxd8+ {[%clk 0:02:03]}  Rxd8 {[%clk 0:02:07]} 17. Qxe5 {[%clk 0:02:02]}  Qxe5 {[%clk 0:02:06]} 18. Rxe5 {[%clk 0:02:02]}  e6 {[%clk 0:02:03]} 19. Kc1 {[%clk 0:01:52]}  Rd4 {[%clk 0:01:55]} 20. Bb3 {[%clk 0:01:49]}  h4 {[%clk 0:01:39]} 21. Ne2 {[%clk 0:01:44]}  Re4 {[%clk 0:01:33]} 22. Rc5+ {[%clk 0:01:36]}  Kb8 {[%clk 0:01:28]} 23. Kd1 {[%clk 0:01:36]}  h3 {[%clk 0:01:06]} 24. gxh3 {[%clk 0:01:35]}  gxh3 {[%clk 0:01:04]} 25. Ng3 {[%clk 0:01:12]}  Rf4 {[%clk 0:01:03]} 26. Nxf5 {[%clk 0:01:09]}  exf5 {[%clk 0:01:03]} 27. Ke2 {[%clk 0:01:04]}  Ne4 {[%clk 0:01:00]} 28. Rc4 {[%clk 0:01:00]}  Rxf2+ {[%clk 0:00:58]} 29. Ke3 {[%clk 0:01:01]}  Rxh2 {[%clk 0:00:58]} 30. Rd4 {[%clk 0:00:57]}  Rh1 {[%clk 0:00:50]} 31. Rd8+ {[%clk 0:00:57]}  Kc7 {[%clk 0:00:50]} 32. Rh8 {[%clk 0:00:57]}  h2 {[%clk 0:00:49]} 33. Kf3 {[%clk 0:00:54]}  Rf1+ {[%clk 0:00:44]} 34. Kg2 {[%clk 0:00:54]}  Rf2+ {[%clk 0:00:44]} 35. Kh1 {[%clk 0:00:55]}  Ng3# {[%clk 0:00:43]} 0-1


[Site "https://www.chess.com"]

[Event "Titled Tuesday Blitz February 28 Late 2023"]
[White "Meftahi, Houssem"]
[Black "Karamsetty, Jeevan"]
[WhiteFideId "5501660"]
[BlackFideId "2025337"]
[WhiteElo "2124"]
[BlackElo "2111"]
[Result "0-1"]
[Round "03"]
[TimeControl "180+2"]
[Date "2023.02.28"]
[WhiteClock "0:00:14"]
[BlackClock "0:01:03"]

1. e4 {[%clk 0:02:56]}  e5 {[%clk 0:02:58]} 2. Bc4 {[%clk 0:02:55]}  Nc6 {[%clk 0:02:58]} 3. Nc3 {[%clk 0:02:55]}  Nf6 {[%clk 0:02:56]} 4. d3 {[%clk 0:02:55]}  Be7 {[%clk 0:02:56]} 5. f4 {[%clk 0:02:55]}  d6 {[%clk 0:02:55]} 6. Nf3 {[%clk 0:02:55]}  O-O {[%clk 0:02:55]} 7. O-O {[%clk 0:02:52]}  Be6 {[%clk 0:02:48]} 8. f5 {[%clk 0:02:48]}  Bxc4 {[%clk 0:02:45]} 9. dxc4 {[%clk 0:02:49]}  Nb8 {[%clk 0:02:31]} 10. Bg5 {[%clk 0:02:30]}  c6 {[%clk 0:02:30]} 11. Bxf6 {[%clk 0:02:19]}  Bxf6 {[%clk 0:02:30]} 12. g4 {[%clk 0:02:18]}  Qb6+ {[%clk 0:02:27]} 13. Kg2 {[%clk 0:02:17]}  Qxb2 {[%clk 0:02:27]} 14. Qd3 {[%clk 0:02:16]}  Na6 {[%clk 0:02:17]} 15. g5 {[%clk 0:02:10]}  Be7 {[%clk 0:02:11]} 16. f6 {[%clk 0:02:09]}  gxf6 {[%clk 0:02:11]} 17. gxf6 {[%clk 0:02:09]}  Bxf6 {[%clk 0:02:11]} 18. Rab1 {[%clk 0:01:59]}  Qa3 {[%clk 0:02:08]} 19. Kh1 {[%clk 0:01:09]}  Kh8 {[%clk 0:02:04]} 20. Qe3 {[%clk 0:01:02]}  Nc5 {[%clk 0:01:50]} 21. Rg1 {[%clk 0:01:00]}  Rg8 {[%clk 0:01:48]} 22. Qh6 {[%clk 0:00:55]}  Rg6 {[%clk 0:01:37]} 23. Rxg6 {[%clk 0:00:39]}  fxg6 {[%clk 0:01:36]} 24. Qd2 {[%clk 0:00:31]}  Rf8 {[%clk 0:01:30]} 25. Qxd6 {[%clk 0:00:28]}  Bg7 {[%clk 0:01:22]} 26. Rb3 {[%clk 0:00:15]}  Qc1+ {[%clk 0:01:18]} 27. Ng1 {[%clk 0:00:14]}  Nxb3 {[%clk 0:01:13]} 28. axb3 {[%clk 0:00:14]}  Qe3 {[%clk 0:01:03]} 29. Nce2 {[%clk 0:00:14]}  Qxe4+ {[%clk 0:01:03]} 0-1


[Site "https://www.chess.com"]

[Event "Titled Tuesday Blitz February 28 Late 2023"]
[White "Marczuk, Dominik"]
[Black "Guimaraes, Wagner Peixoto"]
[WhiteFideId "1111264"]
[BlackFideId "2100940"]
[WhiteElo "2174"]
[BlackElo "2185"]
[Result "1-0"]
[Round "03"]
[TimeControl "180+2"]
[Date "2023.02.28"]
[WhiteClock "0:02:50"]
[BlackClock "0:01:00"]

1. e4 {[%clk 0:02:55]}  e5 {[%clk 0:02:59]} 2. Nf3 {[%clk 0:02:56]}  Nc6 {[%clk 0:02:57]} 3. Bc4 {[%clk 0:02:56]}  Nf6 {[%clk 0:02:46]} 4. d3 {[%clk 0:02:56]}  Be7 {[%clk 0:02:42]} 5. O-O {[%clk 0:02:57]}  d6 {[%clk 0:02:43]} 6. Bb3 {[%clk 0:02:57]}  O-O {[%clk 0:02:43]} 7. c3 {[%clk 0:02:58]}  Bg4 {[%clk 0:02:41]} 8. Nbd2 {[%clk 0:02:58]}  a5 {[%clk 0:02:40]} 9. h3 {[%clk 0:02:59]}  Bh5 {[%clk 0:02:36]} 10. Re1 {[%clk 0:02:59]}  d5 {[%clk 0:02:31]} 11. Qe2 {[%clk 0:02:55]}  dxe4 {[%clk 0:02:25]} 12. dxe4 {[%clk 0:02:55]}  a4 {[%clk 0:02:24]} 13. Bc2 {[%clk 0:02:55]}  Qd7 {[%clk 0:02:20]} 14. Nf1 {[%clk 0:02:55]}  Rfd8 {[%clk 0:02:14]} 15. Ng3 {[%clk 0:02:56]}  Bg6 {[%clk 0:02:14]} 16. Nh4 {[%clk 0:02:55]}  a3 {[%clk 0:01:52]} 17. b3 {[%clk 0:02:54]}  h6 {[%clk 0:01:31]} 18. Nhf5 {[%clk 0:02:54]}  Kh7 {[%clk 0:01:27]} 19. Qf3 {[%clk 0:02:50]}  Bf8 {[%clk 0:01:12]} 20. Nxh6 {[%clk 0:02:49]}  gxh6 {[%clk 0:01:13]} 21. Qxf6 {[%clk 0:02:49]}  Bg7 {[%clk 0:01:14]} 22. Qf3 {[%clk 0:02:49]}  Rf8 {[%clk 0:01:01]} 23. Nf5 {[%clk 0:02:49]}  Bxf5 {[%clk 0:01:01]} 24. exf5 {[%clk 0:02:50]}  Bf6 {[%clk 0:01:00]} 25. Be3 {[%clk 0:02:49]}  Rg8 {[%clk 0:01:00]} 26. Rad1 {[%clk 0:02:49]}  Qe7 {[%clk 0:01:00]} 27. Qh5 {[%clk 0:02:50]} 1-0


[Site "https://www.chess.com"]